fUSD/lending_fUSD_20260405
["ID","MTS","AMOUNT","RATE_DAILY","PERIOD"]
[419807415,1775391042005,-150.0,0.00013973,2]
[419807416,1775391042014,-1500.0,0.00014,2]
[419807417,1775391042023,-4197.84638016,0.00014013,2]
[419807418,1775391042032,-11422.25541393,0.00014115,2]
[419807419,1775391042042,-150.0,0.00014247,2]
[419807420,1775391042052,-150.0,0.00014247,2]
[419807421,1775391042061,-150.0,0.00014247,2]
[419807422,1775391042071,-150.0,0.00014247,2]
[419807423,1775391042081,-150.0,0.00014247,2]
[419807424,1775391042090,-150.0,0.00014247,2]
[419807425,1775391042100,-1000.0,0.00014247,2]
[419807426,1775391042110,-1000.0,0.00014247,2]
[419807427,1775391042120,-1000.0,0.00014247,2]
[419807428,1775391042130,-1000.0,0.00014247,2]
[419807429,1775391042139,-1000.0,0.00014247,2]
[419807430,1775391042149,-1000.0,0.00014247,2]
[419807431,1775391042158,-1000.0,0.00014247,2]
[419807432,1775391042167,-500.99241895,0.00014247,2]
[419807433,1775391042177,-500.0,0.00014247,2]
[419807434,1775391042187,-1000.0,0.00014247,2]
[419807437,1775391042196,-1000.0,0.00014247,2]
[419807439,1775391042206,-1000.0,0.00014247,2]
[419807441,1775391042216,-1000.0,0.00014247,2]
[419807442,1775391042226,-1000.0,0.00014247,2]
[419807443,1775391042235,-743.80429884,0.00014247,2]
[419807444,1775391042244,-790.32775663,0.00014247,2]
[419807445,1775391042254,-1000.0,0.00014247,2]
[419807446,1775391042263,-1000.0,0.00014247,2]
[419807447,1775391042273,-1000.0,0.00014247,2]
[419807448,1775391042282,-54559.61273521,0.00014355,2]
[419807449,1775391042291,-1191.47,0.00014384,2]
[419807450,1775391042302,-10405.80591116,0.0001439,2]
[419807451,1775391042312,-508.0,0.00014397,3]
[419807452,1775391042321,-525.0,0.000146,2]
[419807453,1775391042331,-166.66,0.000146,2]
[419807454,1775391042340,-160.0,0.000147,2]
[419807455,1775391042350,-2184.683311,0.000147,2]
[419807456,1775391042359,-4209.366622,0.000147,2]
[419807457,1775391042368,-1500.0,0.00014795,2]
[419807458,1775391042378,-1500.0,0.00014795,2]
[419807459,1775391042388,-1500.0,0.00014795,2]
[419807460,1775391042397,-1500.0,0.00014795,2]
[419807461,1775391042406,-1500.0,0.00014795,2]
[419807462,1775391042416,-418.3764967,0.00014795,2]
[419807463,1775391042425,-1500.0,0.00014795,2]
[419807464,1775391042435,-1500.0,0.00014795,2]
[419807465,1775391042445,-186.27125357,0.00014795,2]
[419807466,1775391042455,-1500.0,0.00014795,2]
[419807467,1775391042465,-1500.0,0.00014795,2]
[419807468,1775391042474,-1500.0,0.00014795,2]
[419807469,1775391042484,-1500.0,0.00014795,2]
[419807470,1775391042495,-1500.0,0.00014795,2]
[419807471,1775391042505,-1500.0,0.00014795,2]
[419807472,1775391042515,-1000.0,0.00014904,7]
[419807473,1775391042526,-166.66,0.00014908,2]
[419807474,1775391042537,-289.56339563,0.00014908,2]
[419807475,1775391042547,-561.26498013,0.0001495,2]
[419807476,1775391042556,-4197.84638016,0.00014957,2]
[419807477,1775391042566,-332.0,0.00015,2]
[419807478,1775391042575,-2067.27601646,0.00015,2]
[419807479,1775391042585,-8047.93487487,0.00015,2]
[419807480,1775391042594,-300.0,0.00015,2]
[419807481,1775391042603,-210.23738326,0.00015012,2]
[419807482,1775391042612,-727.88353154,0.00015012,2]
[419807483,1775391042622,-2000.0,0.00015015,2]
[419807484,1775391042631,-532.40918815,0.00015015,2]
[419807485,1775391042641,-2000.0,0.00015015,2]
[419807486,1775391042651,-500.0,0.00015015,2]
[419807487,1775391042661,-6453.0,0.00015024,2]
[419807488,1775391042671,-160.0,0.00015064,2]
[419807489,1775391042680,-1191.47,0.00015068,2]
[419807490,1775391042689,-900.0,0.00015068,2]
[419807491,1775391042699,-2129.0,0.00015069,2]
[419807492,1775391042708,-54559.61273521,0.00015077,2]
[419807493,1775391042718,-245.7416,0.000151,2]
[419807494,1775391042727,-155.80569417,0.00015115,2]
[419807495,1775391042737,-166.66,0.00015215,2]
[419807496,1775391042746,-1138.396822,0.00015264,2]
[419807497,1775391042756,-203.571508,0.00015288,7]
[419807498,1775391042765,-160.0,0.00015288,7]
[419807499,1775391042775,-350.476354,0.00015288,7]
[419807500,1775391042785,-540.952708,0.00015288,7]
[419807501,1775391042796,-1517.64,0.000153,2]
[419807502,1775391042806,-403.13613528,0.00015327,2]
[419807503,1775391042816,-1694.29539328,0.00015327,2]
[419807504,1775391042825,-693.24301277,0.00015342,2]
[419807505,1775391042836,-2000.0,0.00015342,2]
[419807506,1775391042846,-1000.0,0.00015342,2]
[419807507,1775391042855,-1171.96403511,0.00015342,2]
[419807508,1775391042864,-2000.0,0.00015342,2]
[419807509,1775391042874,-1753.85680119,0.00015342,2]
[419807510,1775391042884,-1762.51968471,0.00015342,2]
[419807511,1775391042893,-347.07116371,0.00015342,2]
[419807512,1775391042902,-2000.0,0.00015342,2]
[419807513,1775391042912,-2000.0,0.00015342,2]
[419807514,1775391042921,-2000.0,0.00015342,2]
[419807515,1775391042931,-2000.0,0.00015342,2]
[419807516,1775391042940,-1000.0,0.00015342,2]
[419807517,1775391042950,-200.0,0.00015369,2]
[419807518,1775391042959,-1007.13,0.00015369,2]
[419807519,1775391042969,-512.60947705,0.000154,2]
[419807520,1775391042979,-2979.113606,0.00015435,2]
[419807521,1775391042988,-2119.54,0.00015471,2]
[419807522,1775391042998,-4122.31,0.00015471,2]
[419807523,1775391043007,-1661.34286454,0.000155,3]
[419807524,1775391043017,-5643.7200837,0.000155,3]
[419807525,1775391043027,-1231.52674065,0.000155,2]
[419807526,1775391043037,-166.66,0.00015522,2]
[419807527,1775391043047,-4870.0,0.00015542,2]
[419807528,1775391043057,-4870.0,0.00015542,2]
[419807530,1775391043067,-4870.0,0.00015551,2]
[419807532,1775391043077,-4870.0,0.000156,2]
[419807534,1775391043087,-4870.0,0.000156,2]
[419807535,1775391043097,-733.77686062,0.00015634,2]
[419807536,1775391043107,-1040.52857286,0.00015654,2]
[419807537,1775391043117,-1003.48148152,0.00015654,2]
[419807538,1775391043127,-1004.36378338,0.00015654,2]
[419807539,1775391043137,-1112.00579602,0.00015654,2]
[419807540,1775391043146,-1040.1117513,0.00015654,2]
[419807541,1775391043156,-1041.34584543,0.00015654,2]
[419807542,1775391043165,-1107.94822531,0.00015654,2]
[419807543,1775391043175,-1053.6190394,0.00015654,2]
[419807544,1775391043185,-508.0,0.00015684,4]
[419807545,1775391043194,-4870.0,0.00015719,2]
[419807546,1775391043204,-4870.0,0.00015726,2]
[419807547,1775391043213,-429.0,0.00015753,2]
[419807548,1775391043223,-209.0,0.00015753,2]
[419807549,1775391043233,-1191.47,0.00015753,2]
[419807550,1775391043243,-4870.0,0.00015789,2]
[419807551,1775391043253,-54559.61273521,0.000158,2]
[419807552,1775391043262,-166.66,0.0001583,2]
[419807554,1775391043272,-166143.042,0.0001584,2]
[419807555,1775391043282,-500.0,0.0001589,2]
[419807557,1775391043291,-500.0,0.0001589,2]
[419807559,1775391043301,-500.0,0.0001589,2]
[419807561,1775391043311,-500.0,0.0001589,2]
[419807563,1775391043320,-500.0,0.0001589,2]
[419807565,1775391043330,-500.0,0.0001589,2]
[419807566,1775391043340,-500.0,0.0001589,2]
[419807567,1775391043349,-500.0,0.0001589,2]
[419807568,1775391043361,-500.0,0.0001589,2]
[419807569,1775391043371,-500.0,0.0001589,2]
[419807571,1775391043382,-500.0,0.0001589,2]
[419807572,1775391043391,-2000.0,0.0001589,2]
[419807573,1775391043400,-1100.33490613,0.0001589,2]
[419807574,1775391043410,-823.00574972,0.0001589,2]
[419807575,1775391043420,-2500.0,0.0001589,2]
[419807576,1775391043430,-2500.0,0.0001589,2]
[419807577,1775391043440,-2006.37622858,0.0001589,2]
[419807578,1775391043449,-4870.0,0.00015897,2]
[419807579,1775391043459,-2888077.13064639,0.000159,5]
[419807580,1775391043469,-24594.73927756,0.000159,2]
[419807581,1775391043479,-795.0000839,0.000159,2]
[419807582,1775391043489,-22253.05972171,0.000159,2]
[419807583,1775391043500,-4197.84638016,0.000159,2]
[419807584,1775391043773,-5000.0,0.0001596,2]
[419807585,1775391043783,-4870.0,0.00015962,2]
[419807586,1775391043793,-4870.0,0.00015997,2]
[419807587,1775391043803,-666.0,0.00015999,2]
[419807588,1775391043813,-666.0,0.00015999,2]
[419807589,1775391043823,-1503259.44756489,0.00016,2]
[419807590,1775391044813,-542.46609112,0.00016,2]
[419807591,1775391044903,-1973.0,0.00013429,2]
[419807592,1775391044913,-55.40312609,0.00016,2]
[419807593,1775391044926,-4737.84606015,0.00016,2]
[419807599,1775391045774,-151.0,0.0001,2]
[419807600,1775391045785,-151.0,0.00010022,2]
[419807601,1775391045796,-1973.0,0.00013429,2]
[419807602,1775391045805,-1973.0,0.00013429,2]
[419807603,1775391045815,-1973.0,0.00013429,2]
[419807604,1775391045825,-1973.0,0.00013429,2]
[419807605,1775391045834,-3694.0,0.00013429,2]
[419807606,1775391045844,-1973.0,0.00013429,2]
[419807607,1775391045854,-1973.0,0.00013429,2]
[419807608,1775391045863,-1973.0,0.00013429,2]
[419807609,1775391045874,-2000.0,0.00015701,2]
[419807610,1775391045885,-2000.0,0.00015801,2]
[419807611,1775391045895,-2000.0,0.00015901,2]
[419807612,1775391045905,-7378917.68756641,0.00016,2]
[419807616,1775391046758,-250.00093435,0.00013429,2]
[419807617,1775391046782,-1722.99906565,0.00013429,2]
[419807618,1775391046791,-1973.0,0.00013429,2]
[419807619,1775391046801,-3694.0,0.00013429,2]
[419807620,1775391046810,-1818.01936332,0.00013429,2]
[419807621,1775391047338,-178.5665715,9.396e-05,2]
[419807622,1775391047351,-154.98063668,0.00013429,2]
[419807623,1775391047362,-1973.0,0.00013429,2]
[419807624,1775391047372,-179.80994708,0.00013429,2]
[419807625,1775391047386,-1465.1662,0.00013429,2]
[419807626,1775391047418,-1141.6,0.00013429,2]
[419807631,1775391339980,150.0,8.951e-05,2]
[419807642,1775391719739,2222.8763441,9.012e-05,2]
[419807646,1775391824163,-2500.0,9.13e-05,2]
[419807647,1775391824186,-300.0,9.202e-05,2]
[419807648,1775391824207,-500.0,9.203e-05,2]
[419807649,1775391824227,-500.0,9.203e-05,2]
[419807650,1775391824248,-500.0,9.203e-05,2]
[419807651,1775391824270,-167.72212086,9.203e-05,2]
[419807652,1775391824292,-170.03963765,9.203e-05,2]
[419807653,1775391824315,-503.19697935,9.203e-05,2]
[419807654,1775391824335,-500.0,9.203e-05,2]
[419807655,1775391824356,-500.0,9.203e-05,2]
[419807656,1775391824378,-500.17887763,9.203e-05,2]
[419807657,1775391824400,-500.25334159,9.203e-05,2]
[419807658,1775391824422,-1200.0,9.227e-05,2]
[419807659,1775391824444,-300.0,9.227e-05,2]
[419807660,1775391824465,-1358.60904292,9.227e-05,2]
[419807661,1775391826055,-3641.39095708,9.227e-05,2]
[419807662,1775391826077,-250.0,9.228e-05,2]
[419807663,1775391826099,-5000.0,9.228e-05,2]
[419807664,1775391826120,-861.06145815,9.228e-05,2]
[419807665,1775391826142,-150.0,9.228e-05,2]
[419807666,1775391826163,-97.54758477,9.228e-05,2]
[419807667,1775391827260,-52.45241523,9.228e-05,2]
[419807668,1775391827283,-5250.069,9.228e-05,2]
[419807669,1775391827305,-312.921,9.228e-05,2]
[419807670,1775391827329,-250.0,9.228e-05,2]
[419807671,1775391827350,-150.0,9.228e-05,2]
[419807672,1775391827374,-214.03115096,9.229e-05,2]
[419807673,1775391827399,-500.0,9.229e-05,2]
[419807674,1775391827423,-195.63092054,9.229e-05,2]
[419807675,1775391827446,-392.90506632,9.229e-05,2]
[419807676,1775391827471,-500.0,9.229e-05,2]
[419807677,1775391827496,-500.0,9.229e-05,2]
[419807678,1775391827519,-500.0,9.229e-05,2]
[419807679,1775391827546,-500.0,9.229e-05,2]
[419807680,1775391827569,-500.0,9.229e-05,2]
[419807681,1775391827598,-181.99044695,9.229e-05,2]
[419807682,1775391827666,-318.00955305,9.229e-05,2]
[419807683,1775391827688,-332.23200768,9.229e-05,2]
[419807684,1775391827714,-500.0,9.229e-05,2]
[419807685,1775391827735,-278.86443232,9.229e-05,2]
[419807686,1775391827769,-500.0,9.229e-05,2]
[419807687,1775391827796,-500.0,9.229e-05,2]
[419807688,1775391827823,-500.0,9.229e-05,2]
[419807689,1775391827851,-500.0,9.229e-05,2]
[419807690,1775391827877,-500.0,9.229e-05,2]
[419807691,1775391827906,-500.0,9.229e-05,2]
[419807692,1775391828434,-500.0,9.229e-05,2]
[419807693,1775391828461,-392.37556143,9.229e-05,2]
[419807694,1775391828488,-500.0,9.229e-05,2]
[419807695,1775391828513,-500.0,9.229e-05,2]
[419807696,1775391828537,-500.0,9.229e-05,2]
[419807697,1775391828561,-596.95931413,9.229e-05,2]
[419807698,1775391828588,-500.0,9.229e-05,2]
[419807699,1775391828617,-594.99999999,9.229e-05,2]
[419807700,1775391828643,-500.0,9.229e-05,2]
[419807701,1775391828668,-500.0,9.229e-05,2]
[419807702,1775391828695,-486.5591314,9.229e-05,2]
[419807703,1775391828750,-13.4408686,9.229e-05,2]
[419807704,1775391828776,-500.0,9.229e-05,2]
[419807705,1775391828801,-500.0,9.229e-05,2]
[419807706,1775391828829,-500.0,9.229e-05,2]
[419807707,1775391828855,-500.0,9.229e-05,2]
[419807708,1775391828877,-238.64022314,9.229e-05,2]
[419807709,1775391828903,-500.0,9.229e-05,2]
[419807710,1775391828927,-500.0,9.229e-05,2]
[419807711,1775391828950,-500.0,9.229e-05,2]
[419807712,1775391828971,-150.0,9.229e-05,2]
[419807713,1775391828991,-150.0,9.229e-05,2]
[419807714,1775391829011,-161.14,9.23e-05,2]
[419807715,1775391829035,-5786.77890826,9.23e-05,2]
[419807716,1775391829149,-10000.0,9.23e-05,2]
[419807717,1775391829193,-10000.0,9.23e-05,2]
[419807718,1775391829300,-10000.0,9.23e-05,2]
[419807719,1775391830580,-10000.0,9.23e-05,2]
[419807720,1775391831030,-10000.0,9.23e-05,2]
[419807721,1775391832235,-10000.0,9.23e-05,2]
[419807722,1775391832285,-10000.0,9.23e-05,2]
[419807723,1775391832330,-10000.0,9.23e-05,2]
[419807724,1775391832434,-10000.0,9.23e-05,2]
[419807725,1775391832872,-10000.0,9.23e-05,2]
[419807726,1775391835207,-10000.0,9.23e-05,2]
[419807727,1775391836125,-2500.0,9.13e-05,2]
[419807728,1775391836151,-7500.0,9.23e-05,2]
[419807729,1775391836759,-10000.0,9.23e-05,2]
[419807730,1775391836956,-10000.0,9.23e-05,2]
[419807731,1775391837370,-10000.0,9.23e-05,2]
[419807732,1775391837786,-10000.0,9.23e-05,2]
[419807733,1775391838103,-10000.0,9.23e-05,2]
[419807734,1775391840246,-10000.0,9.23e-05,2]
[419807735,1775391840906,-10000.0,9.23e-05,2]
[419807736,1775391843428,-150.0,9.229e-05,2]
[419807737,1775391843451,-1320.00734261,9.229e-05,2]
[419807738,1775391843473,-300.0,9.229e-05,2]
[419807739,1775391843494,-1752.27845808,9.229e-05,2]
[419807740,1775391843517,-300.0,9.229e-05,2]
[419807741,1775391843539,-3634.19823712,9.229e-05,2]
[419807742,1775391843560,-236.08210685,9.229e-05,2]
[419807743,1775391843585,-2307.43385534,9.23e-05,2]
[419807744,1775391845027,-10000.0,9.23e-05,2]
[419807745,1775391846979,-166.14118016,9.203e-05,2]
[419807746,1775391847001,-500.0,9.203e-05,2]
[419807747,1775391847021,-160.38166479,9.203e-05,2]
[419807748,1775391847043,-500.0,9.203e-05,2]
[419807749,1775391847064,-500.0,9.203e-05,2]
[419807750,1775391847087,-8173.47715505,9.23e-05,2]
[419807751,1775391852809,-3165.23481391,9.229e-05,2]
[419807752,1775391852834,-929.24359928,9.229e-05,2]
[419807753,1775391852861,-5905.52158681,9.23e-05,2]
[419807754,1775391854754,-10000.0,9.23e-05,2]
[419807755,1775391855888,-10000.0,9.23e-05,2]
[419807756,1775391862608,-879.65842586,9.229e-05,2]
[419807757,1775391862633,-2318.34157414,9.23e-05,2]
[419807766,1775391908725,-1216.52671213,9.229e-05,2]
[419807767,1775391908748,-8783.47328787,9.229e-05,2]
[419807768,1775391911737,-10000.0,9.229e-05,2]
[419807769,1775391916922,-1000.0,9.229e-05,2]
[419807770,1775391916944,-4140.0,9.229e-05,2]
[419807774,1775392000304,-500.0,9.03e-05,2]
[419807775,1775392021187,300.0,9.129e-05,2]
[419807776,1775392022177,300.0,9.129e-05,2]
[419807777,1775392027150,-432.19602739,9.13e-05,2]
[419807788,1775392194843,8400.01,9.129e-05,2]
[419807789,1775392194869,10000.01,9.129e-05,2]
[419807800,1775392231697,-300.0,9.128e-05,2]
[419807801,1775392231707,-127.65,9.128e-05,2]
[419807802,1775392231718,-400.0,9.128e-05,2]
[419807803,1775392231776,-672.35,9.128e-05,2]
[419807804,1775392231787,-150.0,9.128e-05,2]
[419807805,1775392231796,-300.0,9.128e-05,2]
[419807806,1775392231806,-300.0,9.128e-05,2]
[419807807,1775392231816,-125976.87329692,9.129e-05,2]
[419807808,1775392231828,-1097.89225197,9.129e-05,2]
[419807809,1775392231841,-255.51004428,9.129e-05,2]
[419807810,1775392231860,-4077.72044486,9.129e-05,2]
[419807811,1775392231874,-404.18027784,9.129e-05,2]
[419807812,1775392231895,-11237.48396771,9.129e-05,2]
[419807813,1775392231906,-7853.76,9.129e-05,2]
[419807814,1775392231918,-1163.04741298,9.129e-05,2]
[419807815,1775392231929,-867.61452967,9.129e-05,2]
[419807816,1775392231940,-6795.66958523,9.129e-05,2]
[419807823,1775392234658,171.56,6.906e-05,2]
[419807824,1775392234842,171.56,8.632e-05,2]
[419807833,1775392237671,-500.0,9.128e-05,2]
[419807834,1775392237681,-69.9096585,9.128e-05,2]
[419807835,1775392237692,-131.63119862,9.128e-05,2]
[419807836,1775392237701,-220.78346747,9.128e-05,2]
[419807837,1775392237710,-359.96181657,9.128e-05,2]
[419807838,1775392237726,-140.03818343,9.128e-05,2]
[419807839,1775392237736,-500.0,9.128e-05,2]
[419807840,1775392237745,-500.0,9.128e-05,2]
[419807841,1775392237754,-500.0,9.128e-05,2]
[419807842,1775392237764,-217.0481562,9.128e-05,2]
[419807843,1775392237773,-375.59591744,9.128e-05,2]
[419807844,1775392237784,-17.30914888,9.128e-05,2]
[419807845,1775392237794,-2913.09143958,9.129e-05,2]
[419807846,1775392237806,-2664.64708716,9.129e-05,2]
[419807847,1775392237843,-348.56339849,9.129e-05,2]
[419807848,1775392237897,-1315943.92626331,9.129e-05,2]
[419807849,1775392237907,-201.36308647,9.129e-05,2]
[419807850,1775392237916,-21160.41177261,9.13e-05,2]
[419807851,1775392237926,-2500.0,9.13e-05,2]
[419807852,1775392237935,-213.77083829,9.13e-05,2]
[419807853,1775392237945,-200.0,9.2e-05,2]
[419807854,1775392237954,-500.0,9.203e-05,2]
[419807855,1775392237963,-500.0,9.203e-05,2]
[419807856,1775392237974,-500.0,9.203e-05,2]
[419807857,1775392237983,-500.0,9.203e-05,2]
[419807858,1775392237992,-500.0,9.203e-05,2]
[419807859,1775392238001,-500.0,9.203e-05,2]
[419807860,1775392238010,-500.0,9.203e-05,2]
[419807861,1775392238019,-500.0,9.203e-05,2]
[419807862,1775392238028,-500.0,9.203e-05,2]
[419807863,1775392238038,-199.90943792,9.203e-05,2]
[419807864,1775392238047,-500.0,9.203e-05,2]
[419807865,1775392238056,-500.0,9.203e-05,2]
[419807866,1775392238065,-500.0,9.228e-05,2]
[419807867,1775392238075,-500.0,9.228e-05,2]
[419807868,1775392238084,-500.0,9.228e-05,2]
[419807869,1775392238093,-500.0,9.228e-05,2]
[419807870,1775392238103,-500.0,9.228e-05,2]
[419807871,1775392238113,-500.0,9.228e-05,2]
[419807872,1775392238122,-333.18085343,9.228e-05,2]
[419807873,1775392238132,-500.0,9.228e-05,2]
[419807874,1775392238142,-500.0,9.228e-05,2]
[419807875,1775392238151,-500.0,9.228e-05,2]
[419807876,1775392238161,-500.0,9.228e-05,2]
[419807878,1775392238170,-500.0,9.228e-05,2]
[419807880,1775392238180,-500.0,9.228e-05,2]
[419807882,1775392238189,-500.0,9.228e-05,2]
[419807884,1775392238198,-500.0,9.228e-05,2]
[419807886,1775392238207,-500.0,9.228e-05,2]
[419807888,1775392238216,-500.0,9.228e-05,2]
[419807890,1775392238225,-500.0,9.228e-05,2]
[419807891,1775392238235,-500.0,9.228e-05,2]
[419807892,1775392238243,-500.0,9.228e-05,2]
[419807893,1775392238252,-500.0,9.228e-05,2]
[419807894,1775392238262,-500.0,9.228e-05,2]
[419807895,1775392238271,-500.0,9.228e-05,2]
[419807896,1775392238280,-500.0,9.228e-05,2]
[419807897,1775392238289,-500.0,9.228e-05,2]
[419807898,1775392238299,-189217.63899113,9.229e-05,2]
[419807899,1775392238308,-2500000.0,9.23e-05,2]
[419807900,1775392238318,-14493.5679,9.23e-05,2]
[419807901,1775392238328,-500.0,9.23e-05,2]
[419807902,1775392238338,-500.0,9.23e-05,2]
[419807903,1775392238347,-2385.00025172,9.23e-05,2]
[419807904,1775392238357,-29336.15032187,9.23e-05,2]
[419807905,1775392238368,-479.18200034,9.365e-05,2]
[419807906,1775392238378,-500.0,9.483e-05,2]
[419807907,1775392238387,-500.0,9.483e-05,2]
[419807908,1775392238398,-150.0,9.5e-05,2]
[419807909,1775392238407,-276569.8,9.503e-05,2]
[419807910,1775392238417,-475.8,9.503e-05,2]
[419807911,1775392238426,-500.0,9.504e-05,2]
[419807912,1775392238436,-371.0,9.571e-05,2]
[419807913,1775392238445,-6687.78,9.586e-05,2]
[419807914,1775392238455,-335.0,9.59e-05,2]
[419807915,1775392238464,-537.0,9.609e-05,2]
[419807916,1775392238474,-892.0,9.625e-05,2]
[419807917,1775392238484,-178.831115,9.627e-05,2]
[419807918,1775392238492,-1076.0,9.644e-05,2]
[419807919,1775392238502,-415.0,9.664e-05,2]
[419807920,1775392238511,-9999.99,9.67e-05,2]
[419807921,1775392238520,-34680.75,9.67e-05,2]
[419807922,1775392238530,-252.0,9.683e-05,2]
[419807923,1775392238539,-1064.0,9.702e-05,2]
[419807924,1775392238549,-318.0,9.721e-05,2]
[419807925,1775392238559,-1000.0,9.751e-05,2]
[419807926,1775392238568,-500.90569076,9.751e-05,2]
[419807927,1775392238578,-150.99,9.751e-05,2]
[419807928,1775392238587,-3579.04,9.751e-05,2]
[419807929,1775392238597,-299.99,9.751e-05,2]
[419807930,1775392238607,-150.99,9.751e-05,2]
[419807931,1775392238618,-2117.15,9.751e-05,2]
[419807932,1775392238629,-9999.99,9.751e-05,2]
[419807933,1775392238639,-1000.0,9.751e-05,2]
[419807934,1775392238648,-1000.0,9.751e-05,2]
[419807935,1775392238658,-1000.0,9.751e-05,2]
[419807936,1775392238668,-1000.0,9.751e-05,2]
[419807937,1775392238677,-1000.0,9.751e-05,2]
[419807938,1775392238687,-1000.0,9.751e-05,2]
[419807939,1775392238697,-504.05506813,9.751e-05,2]
[419807940,1775392238706,-1000.0,9.751e-05,2]
[419807941,1775392238715,-1846.0,9.759e-05,2]
[419807942,1775392238726,-500.0,9.778e-05,2]
[419807943,1775392238736,-406.0,9.779e-05,2]
[419807944,1775392238746,-979.0,9.798e-05,2]
[419807945,1775392238756,-975.0,9.818e-05,2]
[419807946,1775392238765,-593.04285321,9.832e-05,2]
[419807947,1775392238774,-999.99,9.832e-05,2]
[419807948,1775392238783,-9999.99,9.832e-05,2]
[419807949,1775392238793,-576.0,9.837e-05,2]
[419807950,1775392238802,-170.0,9.857e-05,2]
[419807951,1775392238811,-250.0,9.933e-05,2]
[419807952,1775392238820,-179.80643111,0.0001,2]
[419807953,1775392238829,-369.49,0.0001,2]
[419807954,1775392238841,-2459.19,0.0001,2]
[419807955,1775392238851,-327.06,0.0001,2]
[419807956,1775392238860,-500.0,0.0001,2]
[419807957,1775392238871,-500.0,0.0001,2]
[419807958,1775392238881,-500.0,0.0001,2]
[419807959,1775392238891,-500.0,0.0001,2]
[419807960,1775392238901,-500.0,0.0001,2]
[419807961,1775392238912,-500.0,0.0001,2]
[419807962,1775392238923,-500.0,0.0001,2]
[419807963,1775392238933,-500.0,0.0001,2]
[419807964,1775392238943,-500.0,0.0001,2]
[419807965,1775392238954,-1351.01242563,0.0001,2]
[419807966,1775392238964,-500.0,0.0001,2]
[419807967,1775392238974,-500.0,0.0001,2]
[419807968,1775392238985,-500.0,0.0001,2]
[419807969,1775392238996,-500.0,0.0001,2]
[419807970,1775392239008,-500.0,0.0001,2]
[419807971,1775392239017,-200.0,0.0001,2]
[419807972,1775392239027,-500.0,0.0001,2]
[419807973,1775392239037,-151.0,0.0001,2]
[419807974,1775392239047,-151.0,0.0001,2]
[419807975,1775392239056,-500.0,0.0001,2]
[419807976,1775392239066,-151.0,0.0001,2]
[419807977,1775392239075,-151.0,0.0001,2]
[419807978,1775392239084,-500.0,0.0001,2]
[419807979,1775392239094,-151.0,0.0001,2]
[419807980,1775392239103,-151.0,0.0001,2]
[419807981,1775392239112,-500.0,0.0001,2]
[419807982,1775392239121,-151.0,0.0001,2]
[419807983,1775392239131,-151.0,0.0001,2]
[419807984,1775392239140,-500.0,0.0001,2]
[419807985,1775392239150,-151.0,0.0001,2]
[419807986,1775392239159,-151.0,0.0001,2]
[419807987,1775392239168,-500.0,0.0001,2]
[419807988,1775392239177,-151.0,0.0001,2]
[419807989,1775392239187,-151.0,0.0001,2]
[419807990,1775392239196,-500.0,0.0001,2]
[419807991,1775392239205,-151.0,0.0001,2]
[419807992,1775392239214,-151.0,0.0001,2]
[419807993,1775392239223,-500.0,0.0001,2]
[419807994,1775392239232,-151.0,0.0001,2]
[419807995,1775392239242,-151.0,0.0001,2]
[419807996,1775392239252,-151.0,0.0001,2]
[419807997,1775392239261,-151.0,0.0001,2]
[419807998,1775392239270,-151.0,0.0001,2]
[419807999,1775392239280,-151.0,0.0001,2]
[419808000,1775392239289,-151.0,0.0001,2]
[419808001,1775392239299,-151.0,0.0001,2]
[419808002,1775392239310,-151.0,0.0001,2]
[419808003,1775392239320,-151.0,0.0001,2]
[419808004,1775392239329,-151.0,0.0001,2]
[419808005,1775392239339,-151.0,0.0001,2]